fUSD/lending_fUSD_20260218
["ID","MTS","AMOUNT","RATE_DAILY","PERIOD"]
[405870919,1771375840221,-500.0,9.681e-05,3]
[405870920,1771375840231,-500.0,9.681e-05,3]
[405870921,1771375840240,-500.0,9.681e-05,3]
[405870922,1771375840249,-500.0,9.681e-05,3]
[405870923,1771375840259,-500.0,9.681e-05,3]
[405870924,1771375840268,-500.0,9.681e-05,3]
[405870925,1771375840278,-500.0,9.681e-05,3]
[405870926,1771375840287,-150.0,9.681e-05,3]
[405870927,1771375840296,-150.0,9.681e-05,2]
[405870928,1771375840306,-500.0,9.681e-05,3]
[405870929,1771375840316,-502.16866536,9.681e-05,3]
[405870930,1771375840326,-420.0,9.689e-05,2]
[405870931,1771375840335,-153.99,9.7e-05,2]
[405870932,1771375840344,-500.0,9.736e-05,3]
[405870933,1771375840354,-500.0,9.736e-05,3]
[405870934,1771375840363,-500.0,9.736e-05,3]
[405870935,1771375840372,-500.0,9.736e-05,3]
[405870936,1771375840380,-500.0,9.736e-05,3]
[405870937,1771375840390,-500.0,9.736e-05,3]
[405870938,1771375840399,-500.0,9.736e-05,3]
[405870939,1771375840408,-150.0,9.736e-05,3]
[405870940,1771375840417,-242.84628954,9.736e-05,3]
[405870941,1771375840426,-500.0,9.736e-05,3]
[405870942,1771375840435,-500.0,9.736e-05,3]
[405870943,1771375840445,-150.0,9.736e-05,3]
[405870944,1771375840454,-152.12850518,9.736e-05,3]
[405870945,1771375840463,-220.15883999,9.736e-05,3]
[405870946,1771375840478,-500.0,9.736e-05,3]
[405870947,1771375840492,-500.0,9.736e-05,3]
[405870948,1771375840501,-500.0,9.736e-05,3]
[405870949,1771375840510,-500.0,9.736e-05,3]
[405870950,1771375840519,-500.0,9.736e-05,3]
[405870951,1771375840529,-500.0,9.736e-05,3]
[405870952,1771375840537,-500.0,9.736e-05,3]
[405870953,1771375840547,-500.0,9.736e-05,3]
[405870954,1771375840555,-537.36614029,9.736e-05,3]
[405870955,1771375840565,-200.0,9.736e-05,3]
[405870956,1771375840574,-150.0,9.736e-05,2]
[405870957,1771375840583,-500.0,9.736e-05,3]
[405870958,1771375840592,-500.0,9.79e-05,3]
[405870959,1771375840600,-500.0,9.79e-05,3]
[405870960,1771375840610,-500.0,9.79e-05,3]
[405870961,1771375840619,-500.0,9.79e-05,3]
[405870962,1771375840629,-500.0,9.79e-05,3]
[405870963,1771375840639,-500.0,9.79e-05,3]
[405870964,1771375840648,-500.0,9.79e-05,3]
[405870965,1771375840659,-250.53819001,9.79e-05,3]
[405870966,1771375840669,-500.0,9.79e-05,3]
[405870967,1771375840678,-500.0,9.79e-05,3]
[405870968,1771375840686,-295.69274942,9.79e-05,3]
[405870969,1771375840696,-500.0,9.79e-05,3]
[405870970,1771375840705,-500.0,9.79e-05,3]
[405870971,1771375840714,-178.36591542,9.79e-05,3]
[405870973,1771375840723,-500.0,9.79e-05,3]
[405870975,1771375840733,-500.0,9.79e-05,3]
[405870977,1771375840742,-500.0,9.79e-05,3]
[405870978,1771375840751,-500.0,9.79e-05,3]
[405870979,1771375840760,-500.0,9.79e-05,3]
[405870980,1771375840768,-200.24181775,9.79e-05,2]
[405870981,1771375840777,-500.0,9.79e-05,3]
[405870982,1771375840787,-4587.476,9.799e-05,2]
[405870983,1771375840797,-10000.0,9.799e-05,2]
[405870984,1771375840807,-500.0,9.845e-05,3]
[405870985,1771375840817,-500.0,9.845e-05,3]
[405870986,1771375840826,-500.0,9.845e-05,3]
[405870987,1771375840835,-500.0,9.845e-05,3]
[405870988,1771375840844,-500.0,9.845e-05,3]
[405870989,1771375840853,-500.0,9.845e-05,3]
[405870990,1771375840862,-500.0,9.845e-05,3]
[405870991,1771375840871,-500.0,9.845e-05,3]
[405870992,1771375840880,-500.0,9.845e-05,3]
[405870993,1771375840889,-500.0,9.845e-05,3]
[405870994,1771375840899,-500.0,9.845e-05,3]
[405870995,1771375840907,-500.0,9.845e-05,3]
[405870996,1771375840918,-329.95129651,9.845e-05,3]
[405870997,1771375840927,-500.0,9.845e-05,3]
[405870998,1771375840936,-500.0,9.845e-05,3]
[405870999,1771375840945,-500.0,9.845e-05,3]
[405871000,1771375840954,-500.0,9.845e-05,3]
[405871001,1771375840963,-255.0,9.863e-05,2]
[405871002,1771375840973,-1471.46208079,9.898e-05,2]
[405871003,1771375840982,-500.0,9.9e-05,3]
[405871004,1771375840991,-500.0,9.9e-05,3]
[405871005,1771375840999,-500.0,9.9e-05,3]
[405871006,1771375841009,-500.0,9.9e-05,3]
[405871007,1771375841018,-500.0,9.9e-05,3]
[405871008,1771375841027,-500.0,9.9e-05,3]
[405871009,1771375841036,-500.0,9.9e-05,3]
[405871010,1771375841045,-500.0,9.9e-05,3]
[405871011,1771375841054,-500.0,9.9e-05,3]
[405871012,1771375841064,-500.0,9.9e-05,3]
[405871013,1771375841073,-500.0,9.9e-05,3]
[405871014,1771375841082,-500.0,9.9e-05,3]
[405871015,1771375841091,-500.0,9.9e-05,3]
[405871016,1771375841100,-500.0,9.9e-05,3]
[405871017,1771375841110,-500.0,9.9e-05,3]
[405871018,1771375841119,-500.0,9.9e-05,3]
[405871019,1771375841130,-500.0,9.9e-05,2]
[405871020,1771375841140,-368.12,9.907e-05,2]
[405871021,1771375841150,-500.0,9.955e-05,3]
[405871022,1771375841160,-361.9355564,9.955e-05,3]
[405871023,1771375841170,-500.0,9.955e-05,3]
[405871024,1771375841181,-500.0,9.955e-05,3]
[405871025,1771375841191,-500.0,9.955e-05,3]
[405871026,1771375841200,-500.0,9.955e-05,3]
[405871027,1771375841210,-500.0,9.955e-05,3]
[405871028,1771375841220,-500.0,9.955e-05,3]
[405871029,1771375841230,-500.0,9.955e-05,3]
[405871030,1771375841239,-630.25617345,9.955e-05,3]
[405871031,1771375841249,-382.17209928,9.955e-05,3]
[405871032,1771375841258,-500.0,9.955e-05,3]
[405871033,1771375841267,-475.49905426,9.955e-05,3]
[405871034,1771375841276,-500.0,9.955e-05,3]
[405871035,1771375841286,-500.0,9.955e-05,3]
[405871036,1771375841295,-500.0,9.955e-05,3]
[405871037,1771375841304,-166.66,9.983e-05,2]
[405871038,1771375841314,-1009.2,0.0001,2]
[405871039,1771375841323,-11400.0,0.0001,3]
[405871040,1771375841332,-218.04759767,0.0001,2]
[405871041,1771375841343,-500.0,0.0001,2]
[405871042,1771375841353,-500.0,0.0001,2]
[405871043,1771375841363,-500.0,0.0001,2]
[405871044,1771375841372,-500.0,0.0001,2]
[405871045,1771375841381,-500.0,0.0001,2]
[405871046,1771375841392,-500.0,0.0001,2]
[405871047,1771375841403,-500.0,0.0001,2]
[405871048,1771375841413,-500.0,0.0001,2]
[405871049,1771375841423,-500.0,0.0001,2]
[405871050,1771375841434,-500.0,0.0001,2]
[405871051,1771375841444,-500.0,0.0001,2]
[405871052,1771375841453,-500.0,0.0001,2]
[405871053,1771375841463,-500.0,0.0001,2]
[405871054,1771375841475,-500.0,0.0001,2]
[405871055,1771375841484,-500.0,0.0001,2]
[405871056,1771375841493,-500.0,0.0001,2]
[405871057,1771375841502,-500.0,0.0001,2]
[405871058,1771375841511,-500.0,0.0001,2]
[405871059,1771375841521,-500.0,0.0001,2]
[405871060,1771375841530,-500.0,0.0001,2]
[405871061,1771375841539,-500.0,0.0001,2]
[405871062,1771375841554,-500.0,0.0001,2]
[405871063,1771375841564,-151.0,0.0001,2]
[405871064,1771375841573,-151.0,0.0001,2]
[405871065,1771375841584,-500.0,0.0001,2]
[405871066,1771375841595,-151.0,0.0001,2]
[405871067,1771375841605,-151.0,0.0001,2]
[405871068,1771375841615,-151.0,0.0001,2]
[405871069,1771375841627,-151.0,0.0001,2]
[405871070,1771375841637,-151.0,0.0001,2]
[405871071,1771375841648,-151.0,0.0001,2]
[405871072,1771375841657,-151.0,0.0001,2]
[405871073,1771375841667,-151.0,0.0001,2]
[405871074,1771375841676,-151.0,0.0001,2]
[405871075,1771375841685,-151.0,0.0001,2]
[405871076,1771375841694,-151.0,0.0001,2]
[405871077,1771375841704,-151.0,0.0001,2]
[405871078,1771375841713,-151.0,0.0001,2]
[405871079,1771375841722,-151.0,0.0001,2]
[405871080,1771375841732,-151.0,0.0001,2]
[405871081,1771375841742,-151.0,0.0001,2]
[405871082,1771375841752,-151.0,0.0001,2]
[405871083,1771375841761,-151.0,0.0001,2]
[405871084,1771375841771,-151.0,0.0001,2]
[405871085,1771375841782,-151.0,0.0001,2]
[405871086,1771375841793,-151.0,0.0001,2]
[405871087,1771375841803,-151.0,0.0001,2]
[405871088,1771375841813,-151.0,0.0001,2]
[405871089,1771375841822,-200.0,0.0001,2]
[405871090,1771375841831,-151.0,0.0001,2]
[405871091,1771375841841,-151.0,0.0001,2]
[405871092,1771375841851,-151.0,0.0001,2]
[405871093,1771375841862,-151.0,0.0001,2]
[405871094,1771375841874,-151.0,0.0001,2]
[405871095,1771375841893,-151.0,0.0001,2]
[405871096,1771375841914,-1580.76891287,0.0001,2]
[405871097,1771375841925,-1580.76891287,0.0001,2]
[405871098,1771375841935,-500.0,0.0001001,3]
[405871099,1771375841945,-500.0,0.0001001,3]
[405871100,1771375841954,-500.0,0.0001001,3]
[405871101,1771375841963,-500.0,0.0001001,3]
[405871102,1771375841972,-500.0,0.0001001,3]
[405871103,1771375841981,-500.0,0.0001001,3]
[405871104,1771375841990,-500.0,0.0001001,3]
[405871105,1771375841999,-500.0,0.0001001,3]
[405871106,1771375842007,-500.0,0.0001001,3]
[405871107,1771375842016,-500.0,0.0001001,3]
[405871108,1771375842025,-500.0,0.0001001,3]
[405871109,1771375842034,-500.0,0.0001001,3]
[405871110,1771375842043,-500.0,0.00010064,3]
[405871111,1771375842051,-500.0,0.00010064,3]
[405871112,1771375842060,-442.49812506,0.00010064,3]
[405871113,1771375842069,-500.0,0.00010064,3]
[405871114,1771375842078,-500.0,0.00010064,3]
[405871115,1771375842087,-500.0,0.00010064,3]
[405871116,1771375842095,-153.2248447,0.00010064,3]
[405871117,1771375842104,-500.0,0.00010064,3]
[405871118,1771375842113,-500.0,0.00010064,3]
[405871119,1771375842122,-205.81655615,0.00010064,3]
[405871120,1771375842132,-500.0,0.00010064,3]
[405871121,1771375842141,-500.0,0.00010064,3]
[405871122,1771375842150,-181.31,0.00010069,2]
[405871123,1771375842159,-299.49,0.00010069,2]
[405871124,1771375842168,-611.76249723,0.00010119,3]
[405871125,1771375842178,-500.0,0.00010119,3]
[405871126,1771375842187,-500.0,0.00010119,3]
[405871127,1771375842198,-500.0,0.00010119,3]
[405871128,1771375842207,-500.0,0.00010119,3]
[405871129,1771375842218,-500.0,0.00010119,3]
[405871130,1771375842228,-500.0,0.00010119,3]
[405871131,1771375842237,-500.0,0.00010119,3]
[405871132,1771375842246,-500.0,0.00010174,3]
[405871133,1771375842255,-500.0,0.00010174,3]
[405871134,1771375842264,-481.0942881,0.00010174,3]
[405871135,1771375842273,-500.0,0.00010174,3]
[405871136,1771375842283,-500.0,0.00010174,3]
[405871137,1771375842292,-500.0,0.00010174,3]
[405871138,1771375842301,-500.0,0.00010174,2]
[405871139,1771375842311,-151.0,0.00010193,2]
[405871140,1771375842321,-662068.1675,0.00010196,2]
[405871141,1771375842331,-32850.4601,0.00010221,2]
[405871142,1771375842340,-1000.0,0.00010221,2]
[405871143,1771375842351,-951.6545,0.00010221,2]
[405871144,1771375842361,-259.7041,0.00010221,2]
[405871145,1771375842372,-437382.30133781,0.00010226,2]
[405871146,1771375842382,-266.33885806,0.00010229,3]
[405871147,1771375842391,-500.0,0.00010229,3]
[405871148,1771375842401,-163.51122534,0.00010229,3]
[405871149,1771375842410,-512.26030593,0.00010229,3]
[405871150,1771375842420,-500.0,0.00010229,3]
[405871151,1771375842430,-1009.2,0.00010274,2]
[405871152,1771375842440,-514.37004621,0.00010284,3]
[405871153,1771375842451,-224.65460803,0.00010284,3]
[405871154,1771375842462,-166.66,0.00010302,2]
[405871155,1771375842474,-151.0,0.00010411,2]
[405871156,1771375842485,-500.0,0.00010448,2]
[405871157,1771375842494,-14381.39,0.00010475,2]
[405871158,1771375842504,-9999.99,0.00010475,2]
[405871159,1771375842515,-1401.0,0.00010475,2]
[405871160,1771375842526,-1009.2,0.00010548,2]
[405871161,1771375842535,-500.0,0.00010548,2]
[405871162,1771375842545,-200.0,0.00010548,2]
[405871163,1771375842556,-334.0,0.00010593,2]
[405871164,1771375842565,-166.66,0.00010621,2]
[405871165,1771375842574,-2351.0,0.00010647,2]
[405871166,1771375842583,-587.0,0.00010658,2]
[405871167,1771375842593,-500.0,0.00010722,2]
[405871168,1771375842602,-1009.2,0.00010822,2]
[405871169,1771375842613,-433.0,0.0001085,2]
[405871170,1771375842623,-1719.05970926,0.00010871,2]
[405871171,1771375842632,-2200.0,0.000109,3]
[405871172,1771375842642,-3576.9202996,0.000109,2]
[405871173,1771375842653,-3576.92029958,0.000109,2]
[405871174,1771375842664,-166.66,0.0001094,2]
[405871175,1771375842674,-16891.69,0.00010959,2]
[405871176,1771375842683,-150.0,0.00010959,2]
[405871177,1771375842691,-166.66,0.00010959,2]
[405871178,1771375842700,-151.0,0.00010959,2]
[405871179,1771375842709,-151.0,0.00010959,2]
[405871180,1771375842718,-500.0,0.00010996,2]
[405871181,1771375842727,-166.66,0.00011068,2]
[405871182,1771375842736,-1009.2,0.00011096,2]
[405871183,1771375842744,-500.0,0.00011096,2]
[405871184,1771375842753,-200.0,0.00011096,2]
[405871185,1771375842762,-43172.15712927,0.00011099,2]
[405871186,1771375842771,-43172.15712926,0.00011099,2]
[405871187,1771375842780,-43172.15712926,0.00011099,2]
[405871188,1771375842789,-43172.15712926,0.00011099,2]
[405871189,1771375842800,-43172.15712926,0.00011099,2]
[405871190,1771375842810,-43172.15712926,0.00011099,2]
[405871191,1771375842820,-43172.15712926,0.00011099,2]
[405871193,1771375842829,-43172.15712926,0.00011099,2]
[405871195,1771375842839,-43172.15712926,0.00011099,2]
[405871197,1771375842848,-43172.15712926,0.00011099,2]
[405871198,1771375842857,-1050.0,0.00011142,7]
[405871199,1771375842866,-166.66,0.00011178,2]
[405871200,1771375842875,-13523.61,0.00011233,2]
[405871201,1771375842884,-150.0,0.00011233,2]
[405871202,1771375842894,-166.66,0.00011259,2]
[405871203,1771375842903,-500.0,0.0001127,2]
[405871204,1771375842912,-3258.26003351,0.00011271,2]
[405871208,1771375843153,-166.66,0.00011288,2]
[405871210,1771375843164,-1009.2,0.0001137,2]
[405871212,1771375843174,-166.66,0.00011397,2]
[405871214,1771375843184,-250.0,0.00011414,2]
[405871216,1771375843194,-3576.92029958,0.00011449,2]
[405871218,1771375843204,-166.66,0.00011507,2]
[405871220,1771375843213,-500.0,0.00011544,2]
[405871223,1771375843223,-1009.2,0.00011644,2]
[405871225,1771375843233,-500.0,0.00011644,2]
[405871227,1771375843243,-200.0,0.00011644,2]
[405871229,1771375843252,-3292.0,0.00011711,2]
[405871230,1771375843262,-823.0,0.00011724,2]
[405871231,1771375843273,-500.0,0.00011818,2]
[405871232,1771375843282,-1009.2,0.00011918,2]
[405871233,1771375843292,-736.0,0.00011935,2]
[405871234,1771375843302,-500.0,0.00012092,2]
[405871235,1771375843312,-164.61380668,0.00012173,2]
[405871236,1771375843324,-500.0,0.00012173,2]
[405871237,1771375843333,-500.0,0.00012173,2]
[405871238,1771375843342,-500.0,0.00012173,2]
[405871239,1771375843352,-500.0,0.00012173,2]
[405871240,1771375843361,-500.0,0.00012173,2]
[405871241,1771375843371,-500.0,0.00012173,2]
[405871242,1771375843380,-500.0,0.00012173,2]
[405871243,1771375843389,-545.77855618,0.00012173,2]
[405871244,1771375843399,-500.0,0.00012173,2]
[405871245,1771375843408,-500.0,0.00012173,2]
[405871246,1771375843417,-500.0,0.00012173,2]
[405871247,1771375843426,-160.1837527,0.00012173,2]
[405871248,1771375843436,-160.37289206,0.00012173,2]
[405871249,1771375843445,-500.0,0.00012173,2]
[405871250,1771375843455,-500.0,0.00012173,2]
[405871251,1771375843464,-500.0,0.00012173,2]
[405871252,1771375843474,-500.0,0.00012173,2]
[405871253,1771375843485,-500.0,0.00012173,2]
[405871254,1771375843494,-500.0,0.00012173,2]
[405871255,1771375843503,-500.0,0.00012173,2]
[405871256,1771375843512,-500.0,0.00012173,2]
[405871257,1771375843522,-500.0,0.00012173,2]
[405871258,1771375843531,-500.0,0.00012173,2]
[405871259,1771375843540,-500.62727143,0.00012173,2]
[405871260,1771375843552,-500.0,0.00012173,2]
[405871261,1771375843561,-218.33608313,0.00012173,2]
[405871262,1771375843573,-500.0,0.00012173,2]
[405871263,1771375843583,-166.78412047,0.00012173,2]
[405871264,1771375843592,-500.0,0.00012173,2]
[405871265,1771375843601,-163.58520611,0.00012173,2]
[405871266,1771375843611,-500.0,0.00012173,2]
[405871267,1771375843620,-500.0,0.00012173,2]
[405871268,1771375843629,-500.0,0.00012173,2]
[405871269,1771375843639,-1009.2,0.00012192,2]
[405871270,1771375843648,-200.0,0.00012192,2]
[405871271,1771375843658,-151.0,0.00012297,2]
[405871272,1771375843667,-214297.0,0.000123,2]
[405871273,1771375843677,-500.0,0.00012366,2]
[405871274,1771375843686,-1009.2,0.00012466,2]
[405871275,1771375843696,-5530.0,0.000126,3]
[405871276,1771375843705,-500.0,0.0001264,2]
[405871277,1771375843715,-228.57891647,0.00012721,2]
[405871278,1771375843724,-1002.81524174,0.00012721,2]
[405871279,1771375843733,-571.65229745,0.00012721,2]
[405871280,1771375843743,-1000.0,0.00012721,2]
[405871281,1771375843754,-1000.0,0.00012721,2]
[405871282,1771375843763,-544.40507509,0.00012721,2]
[405871283,1771375843772,-1000.0,0.00012721,2]
[405871284,1771375843781,-509.22256369,0.00012721,2]
[405871285,1771375843791,-500.0,0.00012721,2]
[405871286,1771375843800,-1000.0,0.00012721,2]
[405871287,1771375843809,-1000.0,0.00012721,2]
[405871288,1771375843818,-1000.0,0.00012721,2]
[405871289,1771375843827,-1000.0,0.00012721,2]
[405871290,1771375843837,-1013.94571317,0.00012721,2]
[405871291,1771375843848,-1000.0,0.00012721,2]
[405871292,1771375843857,-1000.0,0.00012721,2]
[405871293,1771375843867,-1000.0,0.00012721,2]
[405871294,1771375843876,-1000.0,0.00012721,2]
[405871295,1771375843886,-1000.0,0.00012721,2]
[405871296,1771375843896,-1000.0,0.00012721,2]
[405871297,1771375843907,-1000.0,0.00012721,2]
[405871298,1771375843918,-1071.24633497,0.00012721,2]
[405871299,1771375843929,-615.3930462,0.00012721,2]
[405871300,1771375843939,-1000.0,0.00012721,2]
[405871301,1771375843949,-1000.0,0.00012721,2]
[405871302,1771375843959,-433.69347785,0.00012726,2]
[405871303,1771375843969,-150.0,0.00012726,2]
[405871304,1771375843981,-3576.92029958,0.00012739,2]
[405871305,1771375843992,-1009.2,0.0001274,2]
[405871306,1771375844001,-200.0,0.0001274,2]
[405871307,1771375844011,-368.12,0.0001284,2]
[405871308,1771375844020,-4609.0,0.00012883,2]
[405871309,1771375844029,-1152.0,0.00012897,2]
[405871310,1771375844039,-5530.0,0.000129,5]
[405871311,1771375844048,-500.0,0.00012914,2]
[405871312,1771375844058,-1009.20002581,0.00013014,2]
[405871313,1771375844068,-1252.0,0.00013127,2]
[405871314,1771375844077,-594.05284132,0.00013188,2]
[405871315,1771375844087,-181.31,0.00013245,2]
[405871316,1771375844096,-299.49,0.00013245,2]
[405871317,1771375844106,-616.56100589,0.00013268,2]
[405871318,1771375844116,-623.71743587,0.00013268,2]
[405871319,1771375844127,-806.86059886,0.00013268,2]
[405871320,1771375844136,-1500.0,0.00013268,2]
[405871321,1771375844146,-1500.0,0.00013268,2]
[405871322,1771375844160,-1500.0,0.00013268,2]
[405871323,1771375844170,-592.40967882,0.00013268,2]
[405871324,1771375844181,-1500.0,0.00013268,2]
[405871325,1771375844191,-1500.0,0.00013268,2]
[405871326,1771375844203,-1500.0,0.00013268,2]
[405871327,1771375844213,-1500.0,0.00013268,2]
[405871328,1771375844223,-1500.0,0.00013268,2]
[405871329,1771375844232,-1000.0,0.00013268,2]
[405871330,1771375844242,-1500.0,0.00013268,2]
[405871331,1771375844251,-344.71223806,0.00013268,2]
[405871332,1771375844261,-1500.0,0.00013268,2]
[405871333,1771375844270,-200.0,0.00013288,2]
[405871334,1771375844280,-20103.63193877,0.00013384,2]
[405871335,1771375844290,-151.9048494,0.00013384,2]
[405871336,1771375844300,-173.57638878,0.00013534,2]
[405871337,1771375844309,-160.0,0.00013534,2]
[405871338,1771375844320,-393.71,0.00013537,2]
[405871339,1771375844330,-1580.76891287,0.00013688,2]
[405871340,1771375844339,-500.0,0.00013698,2]
[405871341,1771375844349,-500.0,0.00013698,2]
[405871342,1771375844358,-500.0,0.00013698,2]
[405871343,1771375844367,-500.0,0.00013698,2]
[405871344,1771375844377,-500.0,0.00013698,2]
[405871345,1771375844387,-500.0,0.00013698,2]
[405871346,1771375844396,-500.0,0.00013698,2]
[405871347,1771375844406,-500.0,0.00013698,2]
[405871348,1771375844416,-500.0,0.00013698,2]
[405871349,1771375844427,-566.24589873,0.00013698,2]
[405871350,1771375844438,-500.0,0.00013698,2]
[405871351,1771375844449,-500.0,0.00013698,2]
[405871352,1771375844458,-500.0,0.00013698,2]
[405871353,1771375844468,-500.0,0.00013698,2]
[405871354,1771375844480,-500.0,0.00013698,2]
[405871355,1771375844489,-500.0,0.00013698,2]
[405871356,1771375844499,-248.06,0.00013698,2]
[405871357,1771375844508,-500.0,0.00013698,2]
[405871358,1771375844520,-500.0,0.00013698,2]
[405871359,1771375844531,-500.0,0.00013698,2]
[405871360,1771375844540,-500.0,0.00013698,2]
[405871361,1771375844552,-500.0,0.00013698,2]
[405871362,1771375844561,-500.0,0.00013698,2]
[405871363,1771375844582,-500.0,0.00013698,2]
[405871364,1771375844592,-500.0,0.00013698,2]
[405871365,1771375844602,-500.0,0.00013698,2]
[405871366,1771375844612,-500.0,0.00013698,2]
[405871367,1771375844621,-500.0,0.00013698,2]
[405871368,1771375844631,-403.79,0.00013698,2]
[405871369,1771375844642,-546.97,0.00013698,2]
[405871370,1771375844652,-546.97,0.00013698,2]
[405871371,1771375844663,-546.97,0.00013698,2]
[405871372,1771375844673,-546.97,0.00013698,2]
[405871373,1771375844682,-546.97,0.00013698,2]
[405871374,1771375844692,-546.97,0.00013698,2]
[405871375,1771375844703,-546.97,0.00013698,2]
[405871376,1771375844713,-546.97,0.00013698,2]
[405871377,1771375844726,-546.97,0.00013698,2]
[405871378,1771375844736,-546.97,0.00013698,2]
[405871379,1771375844746,-546.97,0.00013698,2]
[405871380,1771375844756,-546.97,0.00013698,2]
[405871381,1771375844766,-546.97,0.00013698,2]
[405871382,1771375844776,-546.97,0.00013698,2]
[405871383,1771375844786,-546.97,0.00013698,2]
[405871384,1771375844796,-546.97,0.00013698,2]
[405871385,1771375844805,-546.97,0.00013698,2]
[405871386,1771375844815,-546.97,0.00013698,2]
[405871387,1771375844825,-546.97,0.00013698,2]
[405871388,1771375844834,-546.97,0.00013698,2]
[405871389,1771375844844,-546.97,0.00013698,2]
[405871390,1771375844854,-546.97,0.00013698,2]
[405871391,1771375844864,-546.97,0.00013698,2]
[405871392,1771375844873,-547.09394166,0.00013698,2]
[405871393,1771375844883,-1479.1,0.00013698,2]
[405871394,1771375844893,-1479.1,0.00013698,2]
[405871395,1771375844903,-1479.1,0.00013698,2]
[405871396,1771375844914,-1479.1,0.00013698,2]
[405871397,1771375844923,-1479.1,0.00013698,2]
[405871398,1771375844933,-1479.1,0.00013698,2]
[405871399,1771375844942,-1479.1,0.00013698,2]
[405871400,1771375844951,-1479.1,0.00013698,2]
[405871401,1771375844961,-1479.1,0.00013698,2]
[405871402,1771375844970,-1479.1,0.00013698,2]
[405871403,1771375844979,-1479.1,0.00013698,2]
[405871404,1771375844990,-1479.1,0.00013698,2]
[405871405,1771375845000,-1479.1,0.00013698,2]
[405871406,1771375845010,-1479.1,0.00013698,2]
[405871407,1771375845020,-1479.1,0.00013698,2]
[405871408,1771375845032,-1479.1,0.00013698,2]
[405871409,1771375845043,-1479.1,0.00013698,2]
[405871410,1771375845053,-1479.1,0.00013698,2]
[405871411,1771375845064,-1479.1,0.00013698,2]
[405871412,1771375845075,-1479.1,0.00013698,2]
[405871413,1771375845086,-1479.1,0.00013698,2]
[405871414,1771375845100,-1479.1,0.00013698,2]
[405871415,1771375845114,-1479.1,0.00013698,2]
[405871416,1771375845124,-1479.19350963,0.00013698,2]
[405871417,1771375845134,-500.0,0.00013698,2]
[405871418,1771375845144,-500.0,0.00013698,2]
[405871419,1771375845154,-500.0,0.00013698,2]
[405871420,1771375845164,-500.0,0.00013698,2]
[405871421,1771375845174,-500.0,0.00013698,2]
[405871422,1771375845183,-500.0,0.00013698,2]
[405871423,1771375845193,-500.0,0.00013698,2]
[405871424,1771375845202,-500.0,0.00013698,2]
[405871425,1771375845213,-500.0,0.00013698,2]
[405871426,1771375845223,-500.0,0.00013698,2]
[405871427,1771375845232,-500.0,0.00013698,2]
[405871428,1771375845243,-500.0,0.00013698,2]
[405871429,1771375845255,-500.0,0.00013698,2]
[405871430,1771375845265,-500.0,0.00013698,2]
[405871431,1771375845275,-500.0,0.00013698,2]
[405871432,1771375845286,-500.0,0.00013698,2]
[405871433,1771375845295,-500.0,0.00013698,2]
[405871434,1771375845305,-500.0,0.00013698,2]
[405871435,1771375845315,-500.0,0.00013698,2]
[405871436,1771375845325,-500.0,0.00013698,2]
[405871437,1771375845339,-500.0,0.00013698,2]
[405871438,1771375845349,-500.0,0.00013698,2]